fUSD/lending_fUSD_20240223
["ID","MTS","AMOUNT","RATE_DAILY","PERIOD"]
[314984608,1708715477492,-160.52606289,0.000314,7]
[314984609,1708715477502,-5968.73,0.00031426,2]
[314984610,1708715477512,-444.0,0.0003145,2]
[314984611,1708715477522,-154.07502588,0.00031462,7]
[314984612,1708715477533,-1213.77329886,0.00031488,7]
[314984613,1708715477542,-152.0,0.000315,30]
[314984614,1708715477552,-1500.0,0.000315,2]
[314984615,1708715477562,-200.0,0.000315,4]
[314984616,1708715477572,-200.0,0.000315,4]
[314984617,1708715477583,-1062.58235876,0.00031505,7]
[314984618,1708715477592,-155.0,0.00031507,2]
[314984619,1708715477602,-155.14487319,0.0003151,7]
[314984620,1708715477612,-1314.14506351,0.00031512,7]
[314984621,1708715477621,-151.49591866,0.00031516,7]
[314984622,1708715477631,-1213.77329886,0.00031543,7]
[314984623,1708715477640,-156.57354396,0.00031543,7]
[314984624,1708715477650,-166.66666668,0.00031555,7]
[314984625,1708715477660,-1062.58235876,0.00031585,7]
[314984626,1708715477670,-154.07502588,0.00031598,7]
[314984627,1708715477679,-4107.0,0.00031602,2]
[314984628,1708715477689,-725.709,0.00031602,2]
[314984629,1708715477699,-2295.0,0.00031602,2]
[314984630,1708715477709,-1037.9,0.00031602,2]
[314984631,1708715477719,-1213.77329886,0.00031614,7]
[314984632,1708715477728,-1062.58235876,0.00031625,7]
[314984633,1708715477739,-312.44,0.00031635,2]
[314984634,1708715477749,-976.94,0.00031637,2]
[314984635,1708715477759,-224.15,0.00031644,2]
[314984636,1708715477768,-1062.58235876,0.00031647,7]
[314984637,1708715477779,-172.0,0.00031651,2]
[314984638,1708715477789,-315.0,0.00031687,3]
[314984639,1708715477799,-151.54644394,0.00031695,7]
[314984640,1708715477808,-163.7016732,0.000317,7]
[314984641,1708715477818,-199.544112,0.00031721,2]
[314984642,1708715477828,-168.419461,0.00031721,2]
[314984643,1708715477839,-184.145994,0.00031721,2]
[314984644,1708715477849,-154.02083881,0.00031729,7]
[314984645,1708715477858,-159.69428409,0.0003175,7]
[314984646,1708715478036,-1314.14506351,0.00031769,7]
[314984647,1708715478046,-153.31768893,0.00031773,7]
[314984648,1708715478056,-9106.6323246,0.00031778,2]
[314984649,1708715478066,-155.59752133,0.00031794,7]
[314984650,1708715478076,-200.0,0.000318,2]
[314984651,1708715478087,-1315.6412712,0.000318,2]
[314984652,1708715478097,-497.0,0.000318,20]
[314984653,1708715478108,-272232.553016,0.000318,3]
[314984654,1708715478117,-155.14487319,0.00031801,7]
[314984655,1708715478127,-4952.46101687,0.00031811,2]
[314984656,1708715478137,-31052.72504961,0.00031824,2]
[314984657,1708715478147,-150.0,0.00031829,2]
[314984658,1708715478156,-150.0,0.00031829,2]
[314984659,1708715478165,-150.0,0.00031829,2]
[314984660,1708715478175,-150.0,0.00031829,2]
[314984661,1708715478185,-2692.0,0.00031829,2]
[314984662,1708715478194,-385.0,0.00031829,2]
[314984663,1708715478204,-954.0,0.00031829,2]
[314984664,1708715478213,-216.0,0.00031829,2]
[314984665,1708715478223,-1231.0,0.00031829,2]
[314984666,1708715478232,-899.327,0.00031829,2]
[314984667,1708715478242,-859.0,0.00031829,2]
[314984668,1708715478251,-425.0,0.00031829,2]
[314984669,1708715478261,-276.0,0.00031829,2]
[314984670,1708715478270,-302.0,0.00031829,2]
[314984671,1708715478280,-1138.0,0.00031829,2]
[314984672,1708715478289,-338.0,0.00031829,2]
[314984673,1708715478299,-322.0,0.00031829,2]
[314984674,1708715478309,-2891.0,0.00031829,2]
[314984675,1708715478319,-455.0,0.00031829,2]
[314984676,1708715478328,-390.0,0.00031829,2]
[314984677,1708715478340,-154.02083881,0.00031838,7]
[314984678,1708715478349,-873.987028,0.00031843,5]
[314984679,1708715478359,-150.0,0.00031867,2]
[314984680,1708715478368,-500.0,0.0003189,7]
[314984681,1708715478378,-500.0,0.0003189,10]
[314984682,1708715478387,-500.0,0.0003189,10]
[314984683,1708715478397,-152.0,0.00031898,8]
[314984684,1708715478406,-1213.77329886,0.00031899,7]
[314984685,1708715478416,-200.0,0.000319,4]
[314984686,1708715478425,-2105.1,0.00031907,2]
[314984687,1708715478435,-500.0,0.00031927,2]
[314984688,1708715478444,-500.0,0.00031927,2]
[314984689,1708715478453,-500.0,0.00031927,2]
[314984690,1708715478463,-500.0,0.00031927,2]
[314984691,1708715478473,-500.0,0.00031927,2]
[314984692,1708715478482,-500.0,0.00031927,2]
[314984693,1708715478492,-500.0,0.00031927,2]
[314984694,1708715478501,-500.0,0.00031927,2]
[314984695,1708715478510,-500.0,0.00031927,2]
[314984696,1708715478520,-500.0,0.00031927,2]
[314984697,1708715478529,-500.0,0.00031927,2]
[314984698,1708715478538,-500.0,0.00031927,2]
[314984699,1708715478548,-500.0,0.00031927,2]
[314984700,1708715478556,-500.0,0.00031927,2]
[314984701,1708715478565,-500.0,0.00031927,2]
[314984702,1708715478574,-500.0,0.00031927,2]
[314984703,1708715478584,-500.0,0.00031927,2]
[314984704,1708715478593,-500.0,0.00031927,2]
[314984705,1708715478602,-500.0,0.00031927,2]
[314984706,1708715478611,-500.0,0.00031927,2]
[314984707,1708715478620,-500.0,0.00031927,2]
[314984708,1708715478629,-500.0,0.00031927,2]
[314984709,1708715478638,-500.0,0.00031927,2]
[314984710,1708715478647,-500.0,0.00031927,2]
[314984711,1708715478656,-500.0,0.00031927,2]
[314984712,1708715478666,-500.0,0.00031927,2]
[314984713,1708715478675,-500.0,0.00031927,2]
[314984714,1708715478684,-500.0,0.00031927,2]
[314984715,1708715478693,-500.0,0.00031927,2]
[314984716,1708715478703,-500.0,0.00031927,2]
[314984717,1708715478712,-500.0,0.00031927,2]
[314984718,1708715478721,-500.0,0.00031927,2]
[314984719,1708715478730,-500.0,0.00031927,2]
[314984720,1708715478739,-500.0,0.00031927,2]
[314984721,1708715478748,-500.0,0.00031927,2]
[314984722,1708715478757,-500.0,0.00031927,2]
[314984723,1708715478766,-500.0,0.00031927,2]
[314984724,1708715478775,-500.0,0.00031927,2]
[314984725,1708715478784,-500.0,0.00031927,2]
[314984726,1708715478793,-500.0,0.00031927,2]
[314984727,1708715478803,-500.0,0.00031927,2]
[314984728,1708715478812,-500.0,0.00031927,2]
[314984729,1708715478821,-500.0,0.00031927,2]
[314984730,1708715478831,-500.0,0.00031927,2]
[314984731,1708715478841,-500.0,0.00031927,2]
[314984732,1708715478850,-500.0,0.00031927,2]
[314984733,1708715478860,-154.98329938,0.00031936,7]
[314984734,1708715478874,-3689.70579272,0.00031936,3]
[314984735,1708715478884,-151.54644394,0.00031937,7]
[314984736,1708715478893,-1000.0,0.00031962,7]
[314984737,1708715478902,-154.07502588,0.00031964,7]
[314984738,1708715478913,-573.11929172,0.00031971,7]
[314984739,1708715478922,-152.6064863,0.00031971,7]
[314984740,1708715478931,-206.85395485,0.00031975,7]
[314984741,1708715478942,-233338.861628,0.00031978,2]
[314984742,1708715478951,-155.14487319,0.00031996,7]
[314984743,1708715478961,-234.48944905,0.00032,4]
[314984744,1708715478971,-900.0,0.00032,33]
[314984745,1708715478981,-367.796723,0.00032,2]
[314984746,1708715478990,-2019.11,0.00032,2]
[314984747,1708715478999,-200.0,0.00032,5]
[314984748,1708715479008,-200.0,0.00032,5]
[314984749,1708715479017,-358.9832586,0.00032,2]
[314984750,1708715479027,-150.1,0.00032,2]
[314984751,1708715479037,-1395.88550204,0.00032,2]
[314984752,1708715479046,-1395.88550204,0.00032,2]
[314984753,1708715479056,-1395.88550204,0.00032,2]
[314984754,1708715479065,-1395.88550204,0.00032,2]
[314984755,1708715479074,-1395.88550204,0.00032,2]
[314984756,1708715479084,-1395.88550204,0.00032,2]
[314984757,1708715479093,-1395.88550204,0.00032,2]
[314984758,1708715479103,-1395.88550204,0.00032,2]
[314984759,1708715479113,-1395.88550204,0.00032,2]
[314984760,1708715479122,-1395.88550204,0.00032,2]
[314984761,1708715479131,-1395.88550204,0.00032,2]
[314984762,1708715479141,-1395.88550204,0.00032,2]
[314984763,1708715479150,-1395.88550204,0.00032,2]
[314984764,1708715479159,-1395.88550204,0.00032,2]
[314984765,1708715479168,-1395.88550204,0.00032,2]
[314984766,1708715479178,-1395.88550204,0.00032,2]
[314984767,1708715479187,-1395.88550204,0.00032,2]
[314984768,1708715479196,-1395.88550204,0.00032,2]
[314984769,1708715479206,-1395.88550204,0.00032,2]
[314984770,1708715479215,-1395.88550204,0.00032,2]
[314984771,1708715479225,-1395.88550204,0.00032,2]
[314984772,1708715479234,-1395.88550204,0.00032,2]
[314984773,1708715479243,-1395.88550204,0.00032,2]
[314984774,1708715479253,-1395.88550204,0.00032,2]
[314984775,1708715479262,-1395.88550204,0.00032,2]
[314984776,1708715479271,-1395.88550204,0.00032,2]
[314984777,1708715479281,-1395.88550204,0.00032,2]
[314984778,1708715479291,-1395.88550204,0.00032,2]
[314984779,1708715479301,-1395.88550204,0.00032,2]
[314984780,1708715479310,-1395.88550204,0.00032,2]
[314984781,1708715479320,-1395.88550204,0.00032,2]
[314984782,1708715479329,-1395.88550204,0.00032,2]
[314984783,1708715479340,-1395.88550204,0.00032,2]
[314984784,1708715479349,-1395.88550204,0.00032,2]
[314984785,1708715479358,-1395.88550204,0.00032,2]
[314984786,1708715479367,-1395.88550204,0.00032,2]
[314984787,1708715479376,-1395.88550204,0.00032,2]
[314984788,1708715479386,-1395.88550204,0.00032,2]
[314984789,1708715479395,-1395.88550204,0.00032,2]
[314984790,1708715479404,-1395.88550204,0.00032,2]
[314984791,1708715479414,-1395.88550204,0.00032,2]
[314984792,1708715479424,-1395.88550204,0.00032,2]
[314984793,1708715479433,-1395.88550204,0.00032,2]
[314984794,1708715479442,-1395.88550204,0.00032,2]
[314984795,1708715479451,-1395.88550204,0.00032,2]
[314984796,1708715479460,-1395.88550204,0.00032,2]
[314984797,1708715479470,-1395.88550204,0.00032,2]
[314984798,1708715479479,-1395.88550204,0.00032,2]
[314984799,1708715479488,-1395.88550204,0.00032,2]
[314984800,1708715479498,-1395.88550204,0.00032,2]
[314984801,1708715479508,-1395.88550204,0.00032,2]
[314984802,1708715479518,-1395.88550204,0.00032,2]
[314984803,1708715479527,-1395.88550204,0.00032,2]
[314984804,1708715479537,-1395.88550204,0.00032,2]
[314984805,1708715479548,-1395.88550204,0.00032,2]
[314984806,1708715479557,-1395.88550204,0.00032,2]
[314984807,1708715479567,-1395.88550204,0.00032,2]
[314984808,1708715479577,-1395.88550204,0.00032,2]
[314984809,1708715479587,-1395.88550204,0.00032,2]
[314984810,1708715479597,-1395.88550204,0.00032,2]
[314984811,1708715479607,-1395.88550204,0.00032,2]
[314984812,1708715479617,-1395.88550204,0.00032,2]
[314984813,1708715479627,-1395.88550204,0.00032,2]
[314984814,1708715479636,-1395.88550204,0.00032,2]
[314984815,1708715479646,-1395.88550204,0.00032,2]
[314984816,1708715479656,-1395.88550204,0.00032,2]
[314984817,1708715479666,-1395.88550204,0.00032,2]
[314984818,1708715479676,-1395.88550204,0.00032,2]
[314984819,1708715479685,-1395.88550204,0.00032,2]
[314984820,1708715479696,-1395.88550204,0.00032,2]
[314984821,1708715479705,-1395.88550204,0.00032,2]
[314984822,1708715479715,-1395.88550204,0.00032,2]
[314984823,1708715479725,-1395.88550204,0.00032,2]
[314984824,1708715479734,-1395.88550204,0.00032,2]
[314984825,1708715479743,-1395.88550204,0.00032,2]
[314984826,1708715479752,-1395.88550204,0.00032,2]
[314984827,1708715479761,-1395.88550204,0.00032,2]
[314984828,1708715479771,-1395.88550204,0.00032,2]
[314984829,1708715479780,-1395.88550204,0.00032,2]
[314984830,1708715479789,-1395.88550204,0.00032,2]
[314984831,1708715479799,-1395.88550204,0.00032,2]
[314984832,1708715479809,-1395.88550204,0.00032,2]
[314984833,1708715479818,-1395.88550204,0.00032,2]
[314984834,1708715479827,-1395.88550204,0.00032,2]
[314984835,1708715479837,-1395.88550204,0.00032,2]
[314984836,1708715479846,-1395.88550204,0.00032,2]
[314984837,1708715479856,-1395.88550204,0.00032,2]
[314984838,1708715479865,-1395.88550204,0.00032,2]
[314984839,1708715479877,-1395.88550204,0.00032,2]
[314984840,1708715479886,-1395.88550204,0.00032,2]
[314984841,1708715479895,-1395.88550204,0.00032,2]
[314984842,1708715479905,-1395.88550204,0.00032,2]
[314984843,1708715479915,-1395.88550204,0.00032,2]
[314984844,1708715479925,-1395.88550204,0.00032,2]
[314984845,1708715479933,-1395.88550204,0.00032,2]
[314984846,1708715479943,-1395.88550204,0.00032,2]
[314984847,1708715479953,-1395.88550204,0.00032,2]
[314984848,1708715479963,-1395.88550204,0.00032,2]
[314984849,1708715479972,-1395.88550204,0.00032,2]
[314984850,1708715479982,-1395.88550204,0.00032,2]
[314984851,1708715479991,-573.11929172,0.00032013,7]
[314984852,1708715480000,-1213.77329886,0.00032025,7]
[314984853,1708715480010,-153.50007692,0.00032035,7]
[314984854,1708715480019,-167.0,0.00032035,2]
[314984855,1708715480029,-152.6064863,0.00032067,7]
[314984856,1708715480067,-151.54644394,0.00032074,7]
[314984857,1708715480076,-172.62583711,0.00032084,7]
[314984858,1708715480086,-167.87801701,0.00032091,7]
[314984859,1708715480096,-444.0,0.000321,2]
[314984860,1708715480105,-1062.58235876,0.000321,7]
[314984861,1708715480114,-153.31768893,0.0003211,7]
[314984862,1708715480124,-328.0,0.00032112,2]
[314984863,1708715480133,-159.51672723,0.00032116,7]
[314984864,1708715480142,-920.9488898,0.0003215,2]
[314984865,1708715480152,-185.0,0.00032151,2]
[314984866,1708715480162,-155.57626886,0.00032167,7]
[314984867,1708715480171,-155.57626886,0.00032191,7]
[314984868,1708715480180,-903.24,0.00032214,2]
[314984869,1708715480190,-573.11929172,0.00032218,7]
[314984870,1708715480199,-1213.77329886,0.0003224,7]
[314984871,1708715480209,-156.57354396,0.00032245,7]
[314984872,1708715480218,-155.59752133,0.00032248,7]
[314984873,1708715480228,-159.69428409,0.00032252,7]
[314984874,1708715480237,-170.35022239,0.00032254,20]
[314984875,1708715480246,-5012.60057,0.00032273,30]
[314984876,1708715480255,-497.0,0.000323,21]
[314984877,1708715480264,-156.321914,0.00032307,7]
[314984878,1708715480273,-158.72024,0.00032325,2]
[314984879,1708715480283,-168.419461,0.00032325,2]
[314984880,1708715480292,-193.417898,0.00032325,2]
[314984881,1708715480302,-150.960581,0.00032325,2]
[314984882,1708715480311,-187.531002,0.00032325,2]
[314984883,1708715480320,-174.348265,0.00032325,2]
[314984884,1708715480330,-175.724649,0.00032325,2]
[314984885,1708715480340,-163.026525,0.00032325,2]
[314984886,1708715480350,-22609.59851198,0.00032337,2]
[314984887,1708715480360,-159.51672723,0.00032357,7]
[314984888,1708715480370,-1314.14506351,0.0003238,7]
[314984889,1708715480379,-260.95699805,0.00032383,2]
[314984890,1708715480389,-221.93019744,0.00032383,2]
[314984891,1708715480398,-260.95699805,0.00032383,2]
[314984892,1708715480408,-221.93019744,0.00032383,2]
[314984893,1708715480417,-260.95699805,0.00032383,2]
[314984894,1708715480427,-221.93019744,0.00032383,2]
[314984895,1708715480438,-573.11929172,0.00032391,7]
[314984896,1708715480447,-156.35719251,0.00032398,7]
[314984897,1708715480457,-1062.58235876,0.00032403,7]
[314984898,1708715480466,-500.0,0.00032438,10]
[314984899,1708715480476,-150.0,0.00032444,2]
[314984900,1708715480486,-151.54644394,0.00032448,7]
[314984901,1708715480496,-155.14487319,0.00032498,7]
[314984902,1708715480505,-500.0,0.000325,5]
[314984903,1708715480514,-550.02950273,0.000325,2]
[314984904,1708715480524,-500.0,0.000325,4]
[314984905,1708715480534,-500.0,0.000325,5]
[314984906,1708715480543,-184.145994,0.00032514,2]
[314984907,1708715480553,-1062.58235876,0.00032516,7]
[314984908,1708715480563,-152.0,0.0003254,9]
[314984909,1708715480572,-1314.14506351,0.00032541,7]
[314984910,1708715480582,-155.85963337,0.00032546,7]
[314984911,1708715480591,-206.85395485,0.00032548,7]
[314984912,1708715480601,-154.07502588,0.0003255,7]
[314984913,1708715480610,-206.85395485,0.0003257,7]
[314984914,1708715480620,-1213.77329886,0.00032589,7]
[314984915,1708715480630,-3689.70579272,0.00032591,4]
[314984916,1708715480639,-308.54427583,0.000326,3]
[314984917,1708715480649,-976.94,0.00032617,2]
[314984918,1708715480658,-3000.0,0.0003263,2]
[314984919,1708715480668,-1314.14506351,0.00032634,7]
[314984920,1708715480678,-312.44,0.00032635,2]
[314984921,1708715480688,-155.14487319,0.00032637,7]
[314984922,1708715480697,-1213.77329886,0.0003264,7]
[314984923,1708715480707,-151.54644394,0.0003265,7]
[314984924,1708715480717,-206.85395485,0.00032653,7]
[314984925,1708715480726,-260.95699805,0.00032668,2]
[314984926,1708715480736,-1062.58235876,0.00032669,7]
[314984927,1708715480745,-1062.58235876,0.00032671,7]
[314984928,1708715480754,-153.31768893,0.00032674,7]
[314984929,1708715480764,-153.33262735,0.00032677,7]
[314984930,1708715480773,-156.57354396,0.00032699,7]
[314984931,1708715480783,-155.0,0.00032721,2]
[314984932,1708715480793,-152.6064863,0.00032724,7]
[314984933,1708715480803,-172.678369,0.00032729,2]
[314984934,1708715480812,-389.3709,0.00032729,2]
[314984935,1708715480822,-1879.33046,0.00032729,2]
[314984936,1708715480831,-834.568549,0.00032729,2]
[314984937,1708715480842,-152.6064863,0.00032745,7]
[314984938,1708715480852,-444.0,0.0003275,2]
[314984939,1708715480862,-155.59752133,0.00032782,7]
[314984940,1708715480874,-1000.0,0.00032788,7]
[314984941,1708715480883,-1000.0,0.00032788,7]
[314984942,1708715480893,-50000.0,0.00032792,7]
[314984943,1708715480903,-1500.0,0.000328,6]
[314984944,1708715480914,-200.0,0.000328,2]
[314984945,1708715480924,-2631.2825424,0.000328,2]
[314984946,1708715480933,-497.0,0.000328,21]
[314984947,1708715480943,-153.74027557,0.00032817,7]
[314984948,1708715481112,-155.59752133,0.00032823,7]
[314984949,1708715481122,-153.31768893,0.00032825,7]
[314984950,1708715481131,-4952.46101687,0.00032833,2]
[314984951,1708715481141,-31052.72504961,0.00032843,2]
[314984952,1708715481151,-155.59752133,0.00032844,7]
[314984953,1708715481160,-873.987028,0.00032871,6]
[314984954,1708715481169,-153.74027557,0.00032872,7]
[314984955,1708715481179,-1409.7540204,0.00032876,7]
[314984956,1708715481189,-1751.04963432,0.00032876,7]
[314984957,1708715481198,-164701.941519,0.00032876,7]
[314984958,1708715481208,-163743.625774,0.00032876,7]
[314984959,1708715481217,-172.00597188,0.00032876,7]
[314984960,1708715481227,-500.0,0.00032876,2]
[314984961,1708715481236,-500.0,0.00032876,2]
[314984962,1708715481246,-500.0,0.00032876,2]
[314984963,1708715481255,-2165.63247201,0.00032876,2]
[314984964,1708715481265,-1000.0,0.00032876,7]
[314984965,1708715481274,-1082.03093618,0.00032876,7]
[314984966,1708715481283,-1066.89776716,0.00032876,7]
[314984967,1708715481295,-500.0,0.00032876,2]
[314984968,1708715481304,-500.0,0.00032876,2]
[314984969,1708715481314,-500.0,0.00032876,2]
[314984970,1708715481323,-500.0,0.00032876,2]
[314984971,1708715481333,-500.0,0.00032876,2]
[314984972,1708715481343,-274.3886413,0.00032876,2]
[314984973,1708715481353,-10000.0,0.00032876,3]
[314984974,1708715481362,-10000.0,0.00032876,3]
[314984975,1708715481371,-10000.0,0.00032876,3]
[314984976,1708715481380,-419.30273585,0.00032876,3]
[314984977,1708715481390,-463.01709819,0.00032876,2]
[314984978,1708715481399,-1000.0,0.00032876,7]
[314984979,1708715481409,-1000.0,0.00032876,7]
[314984980,1708715481419,-1000.0,0.00032876,7]
[314984981,1708715481428,-1000.0,0.00032876,7]
[314984982,1708715481438,-1000.0,0.00032876,7]
[314984983,1708715481447,-1000.0,0.00032876,7]
[314984984,1708715481457,-681.72116543,0.00032876,7]
[314984985,1708715481467,-1314.14506351,0.00032876,7]
[314984986,1708715481477,-190.45603165,0.00032876,2]
[314984987,1708715481487,-150.1,0.00032877,2]
[314984988,1708715481496,-323.91,0.00032877,2]
[314984989,1708715481506,-37393.57,0.00032877,2]
[314984990,1708715481516,-150.0,0.00032877,2]
[314984991,1708715481525,-250.0,0.00032877,2]
[314984992,1708715481535,-182.92,0.00032877,2]
[314984993,1708715481544,-500.0,0.00032877,2]
[314984994,1708715481554,-158.4594,0.00032877,30]
[314984995,1708715481564,-150.0,0.00032877,30]
[314984996,1708715481573,-150.0,0.00032877,30]
[314984997,1708715481583,-150.0,0.00032877,30]
[314984998,1708715481593,-150.0,0.00032877,30]
[314984999,1708715481603,-150.0,0.00032877,2]
[314985000,1708715481613,-150.0,0.00032877,2]
[314985001,1708715481622,-150.0,0.00032877,2]
[314985002,1708715481632,-150.0,0.00032877,2]
[314985003,1708715481642,-150.0,0.00032877,2]
[314985004,1708715481651,-150.0,0.00032877,2]
[314985005,1708715481662,-150.0,0.00032877,2]
[314985006,1708715481672,-150.0,0.00032877,2]
[314985007,1708715481682,-150.0,0.00032877,2]
[314985008,1708715481692,-150.0,0.00032877,2]
[314985009,1708715481703,-150.0,0.00032877,2]
[314985010,1708715481713,-150.0,0.00032877,2]
[314985011,1708715481723,-150.0,0.00032877,2]
[314985012,1708715481733,-150.0,0.00032877,2]
[314985013,1708715481743,-150.0,0.00032877,2]
[314985014,1708715481753,-150.0,0.00032877,2]
[314985015,1708715481763,-150.0,0.00032877,2]
[314985016,1708715481772,-150.0,0.00032877,2]
[314985017,1708715481782,-150.0,0.00032877,2]
[314985018,1708715481791,-150.0,0.00032877,2]
[314985019,1708715481801,-150.0,0.00032877,2]
[314985020,1708715481810,-150.0,0.00032877,2]
[314985021,1708715481820,-150.0,0.00032877,2]
[314985022,1708715481830,-150.0,0.00032877,2]
[314985023,1708715481839,-150.0,0.00032877,2]
[314985024,1708715481848,-150.0,0.00032877,2]
[314985025,1708715481858,-150.0,0.00032877,2]
[314985026,1708715481873,-155.0,0.00032877,2]
[314985027,1708715481882,-155.59752133,0.00032879,7]
[314985028,1708715481892,-217.965,0.000329,10]
[314985029,1708715481901,-2000.0,0.000329,2]
[314985030,1708715481911,-200.0,0.000329,5]
[314985031,1708715481920,-8000.0,0.000329,2]
[314985032,1708715481929,-1213.77329886,0.0003294,7]
[314985033,1708715481939,-260.95699805,0.00032953,2]
[314985034,1708715481949,-3051.387357,0.00032977,2]
[314985035,1708715481959,-500.0,0.00032986,10]
[314985036,1708715481968,-500.0,0.00032986,7]
[314985037,1708715481977,-500.0,0.00032986,10]
[314985038,1708715481986,-153.50007692,0.00032992,7]
[314985039,1708715481995,-900.0,0.00033,34]
[314985040,1708715482005,-1000.0,0.00033,2]
[314985041,1708715482014,-1598.20446271,0.00033,2]
[314985042,1708715482023,-2000.0,0.00033,5]
[314985043,1708715482032,-4000.0,0.00033,5]
[314985044,1708715482042,-300.0,0.00033,2]
[314985045,1708715482051,-1110.41415957,0.00033,2]
[314985046,1708715482060,-1000.0,0.00033,2]
[314985047,1708715482070,-358.9832586,0.00033,2]
[314985048,1708715482079,-950.0,0.00033,3]
[314985049,1708715482089,-150.0,0.00033021,2]
[314985050,1708715482099,-160.0,0.00033021,2]
[314985051,1708715482108,-500.0,0.00033029,2]
[314985052,1708715482118,-80171.20093679,0.0003303,2]
[314985053,1708715482127,-157.08374946,0.00033053,7]
[314985054,1708715482137,-573.11929172,0.00033056,7]
[314985055,1708715482146,-167.65885404,0.00033067,7]
[314985056,1708715482155,-155.59752133,0.00033077,7]
[314985057,1708715482165,-153.31768893,0.00033092,7]
[314985058,1708715482174,-160.0,0.00033108,7]
[314985059,1708715482184,-172.678369,0.00033133,2]
[314985060,1708715482194,-389.3709,0.00033133,2]
[314985061,1708715482203,-1879.33046,0.00033133,2]
[314985062,1708715482212,-834.568549,0.00033133,2]
[314985063,1708715482221,-1213.77329886,0.00033147,7]
[314985064,1708715482231,-1500.0,0.0003315,7]
[314985065,1708715482240,-920.9488898,0.0003315,2]
[314985066,1708715482249,-1314.14506351,0.00033152,7]
[314985067,1708715482259,-168.7526751,0.00033179,7]
[314985068,1708715482268,-500.0,0.00033181,2]
[314985069,1708715482277,-152.0,0.00033182,10]
[314985070,1708715482286,-2630.0244229,0.00033182,2]
[314985071,1708715482296,-206.85395485,0.00033188,7]
[314985072,1708715482306,-167.87801701,0.00033197,7]
[314985073,1708715482315,-154.07502588,0.00033216,7]
[314985074,1708715482324,-1062.58235876,0.00033216,7]
[314985075,1708715482334,-155.14487319,0.00033231,7]
[314985076,1708715482344,-260.95699805,0.00033238,2]
[314985077,1708715482354,-3689.70579272,0.00033245,5]
[314985078,1708715482364,-153.31768893,0.00033247,7]
[314985079,1708715482373,-312.44,0.0003327,2]
[314985080,1708715482382,-5250.0,0.000333,3]
[314985081,1708715482391,-5250.0,0.000333,2]
[314985082,1708715482401,-2746.00807533,0.000333,6]
[314985083,1708715482410,-497.0,0.000333,22]
[314985084,1708715482420,-184.145994,0.00033307,2]
[314985085,1708715482429,-1314.14506351,0.00033311,7]
[314985086,1708715482439,-154.98329938,0.00033314,7]
[314985087,1708715482449,-157.50406449,0.0003332,4]
[314985088,1708715482458,-500.0,0.00033333,2]
[314985089,1708715482468,-156.57354396,0.00033343,7]
[314985090,1708715482486,-1213.77329886,0.00033346,7]
[314985091,1708715482504,-573.11929172,0.00033351,7]
[314985092,1708715482517,-154.98329938,0.00033371,7]
[314985093,1708715482533,-152.6064863,0.00033376,7]
[314985094,1708715482548,-444.0,0.000334,2]
[314985095,1708715482565,-2000.0,0.000334,2]
[314985096,1708715482579,-1510.30739893,0.000334,7]
[314985097,1708715482594,-153.39,0.000334,2]
[314985098,1708715482609,-153.39,0.000334,2]
[314985099,1708715482623,-153.39,0.000334,2]
[314985100,1708715482638,-153.39,0.000334,2]
[314985101,1708715482652,-153.39,0.000334,2]
[314985102,1708715482666,-153.39,0.000334,2]
[314985103,1708715482683,-153.39,0.000334,2]
[314985104,1708715482697,-153.39,0.000334,2]
[314985105,1708715482711,-153.39,0.000334,2]
[314985106,1708715482727,-153.39,0.000334,2]
[314985107,1708715482743,-153.39,0.000334,2]